bitfinex/quotes_BTCUSD_20220306
["timestamp","ask_amount","ask_price","bid_price","bid_amount"]
[1646555777124,0.49918361,39215.0,39214.0,0.0021]
[1646555777729,0.88098461,39215.0,39214.0,0.0021]
[1646555777978,0.88098461,39215.0,39212.0,0.0021]
[1646555777979,0.02758,39213.0,39212.0,0.0021]
[1646555778173,0.49839987,39213.0,39212.0,0.0021]
[1646555778573,1.07538,39210.0,39207.0,0.00204417]
[1646555778773,0.47056456,39209.0,39207.0,0.00204417]
[1646555778973,0.47056456,39209.0,39207.0,0.0011]
[1646555779172,0.62056456,39209.0,39207.0,0.00132832]
[1646555779372,0.74594456,39209.0,39207.0,0.00132832]
[1646555779576,0.02538,39206.0,39184.0,0.001]
[1646555779891,0.02538,39206.0,39181.0,0.06271934]
[1646555779892,0.02538,39192.0,39181.0,0.06271934]
[1646555780076,0.49594456,39192.0,39180.0,0.0031]
[1646555780275,0.14740588,39189.0,39181.0,0.5]
[1646555780474,0.15129438,39185.0,39181.0,0.5]
[1646555780674,0.14740588,39189.0,39182.0,0.1361743]
[1646555780675,0.36891868,39188.0,39182.0,0.1361743]
[1646555781927,0.37085616,39188.0,39182.0,0.1361743]
[1646555782122,0.37085616,39188.0,39180.0,0.0031]
[1646555782823,0.36579307,39188.0,39182.0,0.00012275]
[1646555783026,0.12202588,39183.0,39182.0,0.00012275]
[1646555783425,0.46750204,39183.0,39182.0,0.00012275]
[1646555783827,0.12202588,39183.0,39180.0,0.0031]
[1646555784024,0.37085616,39186.0,39181.0,0.00023703]
[1646555784226,0.12202588,39182.0,39181.0,0.00023703]
[1646555784826,0.46750204,39182.0,39181.0,0.00023703]
[1646555785031,0.46750204,39182.0,39180.0,0.0031]
[1646555785227,0.31349651,39182.0,39180.0,0.00322212]
[1646555785484,0.12202588,39182.0,39180.0,0.00322212]
[1646555785691,0.46750204,39188.0,39180.0,0.00322212]
[1646555785882,0.12202588,39188.0,39180.0,0.00322212]
[1646555786383,0.02538,39192.0,39182.0,0.00012211]
[1646555786583,0.12202588,39191.0,39188.0,0.1704506]
[1646555786783,0.12202588,39199.0,39188.0,0.1704506]
[1646555786984,0.11702588,39199.0,39189.0,0.34547616]
[1646555787184,0.63164,39208.0,39189.0,0.39637616]
[1646555787185,0.11702588,39201.0,39189.0,0.39637616]
[1646555787384,0.15,39211.0,39189.0,0.39637616]
[1646555787385,0.35821174,39213.0,39189.0,0.47175616]
[1646555787597,0.11702588,39209.0,39192.0,0.0002285]
[1646555787884,0.00022841,39206.0,39201.0,0.16721036]
[1646555788083,0.00022841,39206.0,39202.0,0.0509]
[1646555788683,0.11702588,39210.0,39202.0,0.0509]
[1646555788883,0.00022844,39206.0,39202.0,0.0509]
[1646555789924,0.11702588,39209.0,39202.0,0.0509]
[1646555790127,0.00022844,39206.0,39202.0,0.0509]
[1646555791124,0.11702588,39209.0,39202.0,0.0509]
[1646555791324,0.11702588,39209.0,39202.0,0.39637616]
[1646555791325,0.00022102,39206.0,39202.0,0.39637616]
[1646555791526,0.00022102,39206.0,39202.0,0.0509]
[1646555791726,0.00022102,39206.0,39202.0,0.39637616]
[1646555791727,0.01022102,39206.0,39202.0,0.39637616]
[1646555792125,0.01022102,39206.0,39202.0,0.0509]
[1646555792325,0.01,39206.0,39202.0,0.0509]
[1646555792525,0.01021773,39206.0,39202.0,0.0509]
[1646555793577,0.01,39206.0,39202.0,0.0509]
[1646555793777,0.01021773,39206.0,39202.0,0.0509]
[1646555794777,0.01,39206.0,39202.0,0.39637616]
[1646555794977,0.01021846,39206.0,39202.0,0.0509]
[1646555795178,0.01021846,39206.0,39202.0,0.39637616]
[1646555795686,0.01021846,39206.0,39203.0,0.02538]
[1646555795883,0.01,39206.0,39203.0,0.76118]
[1646555796181,0.01,39206.0,39204.0,0.0509]
[1646555796381,0.01022175,39206.0,39204.0,0.0509]
[1646555797139,0.01,39206.0,39204.0,0.0509]
[1646555797741,0.1018,39202.0,39201.0,0.16721036]
[1646555798240,0.1018,39202.0,39201.0,0.56237118]
[1646555798740,0.1018,39202.0,39201.0,0.58775118]
[1646555798939,0.1018,39202.0,39201.0,0.56237118]
[1646555799139,0.1018,39202.0,39201.0,0.21811036]
[1646555803280,0.10654444,39202.0,39201.0,0.21811036]
[1646555803681,0.10654444,39202.0,39201.0,0.56237118]
[1646555803883,0.10496444,39202.0,39201.0,0.58775118]
[1646555804082,0.10496444,39202.0,39201.0,0.8140853]
[1646555804334,0.10496444,39202.0,39201.0,1.61763544]
[1646555805333,0.10340444,39202.0,39201.0,1.61763544]
[1646555805538,0.01,39206.0,39203.0,0.80098]
[1646555805739,0.01,39206.0,39205.0,0.86190426]
[1646555805740,0.00022148,39206.0,39205.0,0.86190426]
[1646555805937,0.04,39225.0,39208.0,0.02538]
[1646555806335,0.11702588,39224.0,39208.0,0.90098]
[1646555806537,0.11702588,39224.0,39210.0,0.02538]
[1646555806736,0.11702588,39222.0,39209.0,0.213045]
[1646555806937,0.11702588,39222.0,39211.0,0.0509]
[1646555807136,0.15054112,39219.0,39211.0,0.0509]
[1646555807339,0.0001,39213.0,39212.0,0.39759096]
[1646555807636,0.0001,39213.0,39212.0,0.15423014]
[1646555807836,0.0001,39213.0,39212.0,0.25423014]
[1646555808687,0.0001,39213.0,39212.0,1.02983014]
[1646555809087,0.0001,39213.0,39212.0,1.37409096]
[1646555809288,0.0001,39213.0,39212.0,1.02983014]
[1646555809488,0.04,39225.0,39215.0,0.02538]
[1646555809791,0.04,39225.0,39216.0,0.0509]
[1646555809992,0.34355926,39224.0,39216.0,0.0509]
[1646555810689,0.00022472,39222.0,39216.0,0.0509]
[1646555811101,0.11702588,39220.0,39216.0,0.0509]
[1646555811297,0.34355926,39219.0,39209.0,0.006]
[1646555811492,0.17663748,39214.0,39207.0,0.0509]
[1646555811727,0.17663748,39214.0,39208.0,0.5]
[1646555811928,0.17663748,39214.0,39207.0,0.0509]
[1646555812137,0.34355926,39219.0,39207.0,0.0509]
[1646555812330,0.11725061,39220.0,39213.0,0.19083896]
[1646555812533,0.11725061,39220.0,39213.0,0.24173896]
[1646555812732,0.0015154,39214.0,39213.0,0.24173896]
[1646555814933,0.0015154,39214.0,39213.0,0.58529822]
[1646555815777,0.0015154,39214.0,39213.0,1.38627822]
[1646555815978,0.0015154,39214.0,39213.0,0.58529822]
[1646555816380,0.0015154,39214.0,39213.0,0.24173896]
[1646555817680,0.00307278,39214.0,39213.0,0.24173896]
[1646555817882,0.00307278,39214.0,39213.0,0.0509]
[1646555822974,0.34355926,39226.0,39213.0,0.07628]
[1646555823182,0.11702588,39227.0,39215.0,0.80098]
[1646555823376,0.34355926,39234.0,39214.0,1.05]
[1646555823377,0.34355926,39234.0,39214.0,1.1]
[1646555823578,0.11702588,39227.0,39216.0,0.0509]
[1646555823776,0.15702588,39225.0,39216.0,0.0509]
[1646555824275,0.15702588,39225.0,39218.0,0.17573672]
[1646555824477,0.15702588,39225.0,39218.0,0.22663672]
[1646555825276,0.04,39225.0,39218.0,0.22663672]
[1646555825478,0.34355926,39224.0,39218.0,0.0509]
[1646555826377,0.00023717,39223.0,39218.0,0.0509]
[1646555827327,0.15702588,39225.0,39218.0,0.0509]
[1646555827527,0.00023718,39222.0,39218.0,0.0509]
[1646555827730,0.1018,39215.0,39214.0,1.28903789]
[1646555828936,0.1018,39215.0,39214.0,1.33993789]
[1646555829132,0.1018,39215.0,39214.0,0.28993789]
[1646555829331,0.1018,39215.0,39214.0,0.0509]
[1646555829530,0.30060128,39215.0,39211.0,0.0379054]
[1646555831201,0.30060128,39215.0,39210.0,0.26957234]
[1646555831400,0.30060128,39215.0,39210.0,0.32047234]
[1646555831804,0.30060128,39215.0,39210.0,0.0509]
[1646555832007,0.34235348,39214.0,39202.0,0.137]
[1646555832204,0.34235348,39214.0,39204.0,0.506]
[1646555832403,0.34235348,39214.0,39204.0,0.006]
[1646555832903,0.34235348,39214.0,39209.0,0.19457863]
[1646555833303,0.19456614,39212.0,39209.0,0.19457863]
[1646555835652,0.19436232,39212.0,39209.0,0.19457863]
[1646555835853,0.10445858,39215.0,39209.0,0.19457863]
[1646555837255,0.00134947,39213.0,39209.0,0.19457863]
[1646555838080,0.21014247,39213.0,39209.0,0.19457863]
[1646555841488,0.34235348,39212.0,39209.0,0.19457863]
[1646555841733,0.20514247,39213.0,39209.0,0.19457863]
[1646555841930,0.20514247,39213.0,39203.0,0.05]
[1646555842131,0.11702588,39210.0,39203.0,0.01275]
[1646555842338,0.11702588,39210.0,39205.0,0.004]
[1646555842339,0.34235348,39209.0,39205.0,0.004]
[1646555842930,0.11702588,39207.0,39205.0,0.004]
[1646555843132,0.34235348,39206.0,39205.0,0.004]
[1646555843728,0.34235348,39206.0,39202.0,0.00022169]
[1646555843929,0.11702588,39203.0,39202.0,0.00022169]
[1646555844131,0.45937936,39203.0,39199.0,0.18788805]
[1646555844329,0.45937936,39203.0,39202.0,0.00022168]
[1646555845330,0.45937936,39203.0,39199.0,0.18988805]
[1646555845575,0.45937936,39203.0,39201.0,0.00022169]
[1646555845875,0.11702588,39203.0,39201.0,0.00022169]
[1646555846475,0.11702588,39203.0,39199.0,0.18788805]
[1646555846675,0.11702588,39203.0,39200.0,0.00022169]
[1646555847077,0.00134862,39212.0,39200.0,0.00022169]
[1646555847078,0.11702588,39211.0,39200.0,0.00022169]
[1646555847280,0.11702588,39211.0,39201.0,0.0509]
[1646555847677,0.00134862,39212.0,39201.0,0.1509]
[1646555847877,0.0026228,39206.0,39202.0,0.00022169]
[1646555848079,0.0026228,39206.0,39203.0,0.0509]
[1646555848882,0.0026228,39206.0,39204.0,0.7756]
[1646555849080,0.0026228,39206.0,39205.0,0.0509]
[1646555849743,0.0026228,39206.0,39205.0,0.37366342]
[1646555849949,0.1018,39215.0,39206.0,1.8256]
[1646555850152,0.1018,39215.0,39210.0,0.6358]
[1646555850546,0.1018,39215.0,39211.0,0.0509]
[1646555851247,0.1018,39215.0,39212.0,0.20259313]
[1646555851446,0.1018,39215.0,39213.0,0.0509]
[1646555854787,0.1018,39215.0,39214.0,0.80355014]
[1646555854986,0.1018,39215.0,39214.0,1.49025014]
[1646555855390,0.1018,39215.0,39214.0,0.71465014]
[1646555857633,0.1018,39215.0,39214.0,0.71637612]
[1646555858137,0.1018,39215.0,39214.0,0.00172598]
[1646555858339,0.1018,39215.0,39214.0,0.92822598]
[1646555858734,0.1018,39215.0,39214.0,0.97822598]
[1646555859134,0.1018,39215.0,39214.0,1.00617612]
[1646555859336,0.1018,39215.0,39214.0,1.64197612]
[1646555861678,0.1018,39215.0,39214.0,0.86637612]
[1646555862080,0.1018,39215.0,39214.0,1.64197612]
[1646555862680,0.10498696,39215.0,39214.0,1.64197612]
[1646555863581,0.10498696,39215.0,39214.0,1.65471612]
[1646555864238,0.10498696,39215.0,39214.0,0.68842598]
[1646555864441,0.22201284,39215.0,39214.0,0.00172598]
[1646555864642,0.55595515,39213.0,39210.0,0.5]
[1646555864839,0.11702588,39212.0,39210.0,0.5]
[1646555865237,0.11702588,39212.0,39209.0,0.006]
[1646555865740,0.11702588,39212.0,39207.0,0.21498678]
[1646555866137,0.45937936,39212.0,39207.0,0.21498678]
[1646555866541,0.11702588,39212.0,39206.0,0.0509]
[1646555867541,0.11702588,39212.0,39206.0,0.2112986]
[1646555867742,0.11702588,39212.0,39206.0,0.2612986]
[1646555868886,0.11702588,39212.0,39206.0,0.28713181]
[1646555869185,0.11702588,39212.0,39206.0,0.1009]
[1646555869485,0.45937936,39212.0,39206.0,0.08908765]
[1646555869883,0.11702588,39212.0,39206.0,0.3128564]
[1646555872435,0.00122206,39211.0,39206.0,0.3128564]
[1646555873537,0.00122206,39211.0,39206.0,0.49908821]
[1646555874235,0.00122206,39211.0,39206.0,0.3128564]
[1646555876388,0.00122206,39211.0,39206.0,1.27468821]
[1646555876588,0.00122206,39211.0,39206.0,0.49908821]
[1646555876788,0.00122206,39211.0,39207.0,0.96183181]
[1646555876988,0.00122206,39211.0,39208.0,0.0509]
[1646555877390,0.00122206,39211.0,39208.0,0.0459]
[1646555878190,0.00122206,39211.0,39208.0,0.8215]
[1646555879632,0.00122206,39211.0,39210.0,0.80355014]
[1646555879833,0.00090597,39211.0,39210.0,0.85445014]
[1646555880032,0.00090597,39211.0,39210.0,0.90445014]
[1646555880833,0.00090597,39211.0,39210.0,1.00445014]
[1646555881233,0.00090597,39211.0,39210.0,1.19073302]
[1646555881437,0.00090597,39211.0,39210.0,1.00445014]
[1646555881637,0.00090597,39211.0,39210.0,0.41513302]
[1646555881836,0.00090597,39211.0,39210.0,1.50445014]
[1646555882034,0.00122502,39211.0,39210.0,1.50445014]
[1646555882434,0.00122502,39211.0,39210.0,0.91516629]
[1646555882836,0.00122502,39211.0,39210.0,1.50445014]
[1646555883085,0.00122502,39211.0,39210.0,0.72885014]
[1646555883286,0.00122502,39211.0,39210.0,0.91516629]
[1646555883486,0.00122502,39211.0,39210.0,0.72885014]
[1646555883686,0.00122502,39211.0,39210.0,1.50445014]
[1646555884089,0.00122502,39211.0,39210.0,1.69076629]
[1646555888140,0.00122502,39211.0,39210.0,0.73721615]
[1646555888339,0.00122502,39211.0,39210.0,0.5]
[1646555888537,0.3435785,39211.0,39210.0,0.5]
[1646555888735,0.53122869,39211.0,39210.0,0.5]
[1646555889138,0.53122869,39211.0,39209.0,0.006]
[1646555889341,0.34235348,39210.0,39209.0,0.006]
[1646555889639,0.11702588,39210.0,39209.0,0.006]
[1646555889838,0.45937936,39210.0,39209.0,0.006]
[1646555890038,0.11702588,39210.0,39209.0,0.006]
[1646555890239,0.45937936,39210.0,39202.0,0.00020693]
[1646555890484,0.34235348,39209.0,39208.0,0.004]
[1646555890686,0.11702588,39209.0,39208.0,0.004]
[1646555891685,0.11702588,39209.0,39202.0,0.00020693]
[1646555891888,0.11702588,39209.0,39202.0,0.50020693]
[1646555892085,0.11702588,39209.0,39202.0,0.6009]
[1646555892285,0.11702588,39209.0,39202.0,0.1011082]
[1646555892485,0.11702588,39209.0,39202.0,0.0511082]
[1646555892786,0.11702588,39209.0,39202.0,0.23752639]
[1646555892986,0.11702588,39209.0,39202.0,0.8267082]
[1646555893185,0.00360002,39211.0,39202.0,0.8265]
[1646555893387,0.00360002,39211.0,39202.0,1.01312639]
[1646555893586,0.00360002,39211.0,39210.0,0.19112782]
[1646555893988,0.00360002,39211.0,39210.0,0.31997796]
[1646555894237,0.00360002,39211.0,39210.0,1.19450837]
[1646555894438,0.00360002,39211.0,39210.0,0.60394841]
[1646555894935,0.00360002,39211.0,39210.0,0.41753022]
[1646555895134,0.00360002,39211.0,39210.0,1.19313022]
[1646555895334,0.00360002,39211.0,39210.0,0.45565902]
[1646555895535,0.00360002,39211.0,39210.0,0.64207721]
[1646555895536,0.01053402,39211.0,39210.0,0.64207721]
[1646555895936,0.01053402,39211.0,39210.0,1.14207721]
[1646555896637,0.01053402,39211.0,39210.0,1.91767721]
[1646555897037,0.00936287,39211.0,39210.0,1.14207721]
[1646555897437,0.00936287,39211.0,39210.0,1.73125902]
[1646555897637,0.00936287,39211.0,39210.0,1.91767721]
[1646555897638,0.00912571,39211.0,39210.0,1.91767721]
[1646555898381,0.00912571,39211.0,39210.0,1.86767721]
[1646555899587,0.00816571,39211.0,39210.0,1.86767721]
[1646555899785,0.00816571,39211.0,39210.0,2.50347721]
[1646555900185,0.00816571,39211.0,39210.0,2.52797481]
[1646555900385,0.00816571,39211.0,39210.0,3.06625926]
[1646555900687,0.00816571,39211.0,39210.0,2.55346616]
[1646555902237,0.0081719,39211.0,39210.0,2.57884616]
[1646555902436,0.0070019,39211.0,39210.0,2.61182028]
[1646555902834,0.0070019,39211.0,39210.0,2.58644028]
[1646555903035,0.38114474,39225.0,39210.0,2.58644028]
[1646555903036,0.00020797,39217.0,39212.0,1.8256]
[1646555903239,0.11702588,39235.0,39218.0,0.127459]
[1646555903441,0.34114474,39234.0,39219.0,0.7756]
[1646555903836,0.34114474,39234.0,39225.0,0.7756]
[1646555904036,0.32344466,39234.0,39226.0,0.0509]
[1646555904237,0.33294568,39234.0,39226.0,0.2009]
[1646555904439,0.06620588,39235.0,39226.0,0.2009]
[1646555904638,0.02538,39237.0,39226.0,0.2009]
[1646555905039,0.06620588,39229.0,39226.0,0.0509]
[1646555905240,0.06620588,39229.0,39228.0,0.02795014]
[1646555905498,0.00500027,39226.0,39224.0,0.6358]
[1646555905797,0.00500027,39226.0,39225.0,0.5]
[1646555905995,0.07120615,39226.0,39225.0,0.5]
[1646555906196,0.40248291,39226.0,39225.0,0.5]
[1646555906398,0.61268023,39226.0,39225.0,0.5]
[1646555906795,0.61268023,39226.0,39222.0,0.0509]
[1646555907195,0.00500027,39226.0,39222.0,0.0509]
[1646555907399,0.06620588,39223.0,39222.0,0.0509]
[1646555910839,0.00023691,39224.0,39222.0,0.0509]
[1646555911238,0.00500027,39226.0,39222.0,0.0509]
[1646555911638,0.00022949,39225.0,39222.0,0.0509]
[1646555911838,0.00022949,39225.0,39222.0,0.8265]
[1646555912038,0.00022949,39225.0,39222.0,0.0509]
[1646555912440,0.06758732,39223.0,39222.0,0.09651743]
[1646555912642,0.06758732,39223.0,39222.0,0.20868936]
[1646555912839,0.00138144,39223.0,39222.0,0.20868936]
[1646555913701,0.00138144,39223.0,39222.0,0.25867935]
[1646555913903,0.00138144,39223.0,39222.0,0.2586722]
[1646555914102,0.00138144,39223.0,39222.0,1.7700722]
[1646555914301,0.00138144,39223.0,39222.0,2.2700722]
[1646555914500,0.00138144,39223.0,39222.0,2.46515484]
[1646555916303,0.00103123,39223.0,39222.0,2.46515484]
[1646555916503,0.00103123,39223.0,39222.0,2.37838007]
[1646555916740,0.00103123,39223.0,39222.0,2.49052198]
[1646555917546,0.00157878,39223.0,39222.0,2.48484254]
[1646555918051,0.00157878,39223.0,39222.0,2.45946254]
[1646555918244,0.00157878,39223.0,39222.0,1.77276254]
[1646555918647,0.00157878,39223.0,39222.0,1.83649354]
[1646555919045,0.00157878,39223.0,39222.0,1.84923354]
[1646555919244,0.00157878,39223.0,39222.0,2.53593354]
[1646555920788,0.00157878,39223.0,39222.0,2.52319354]
[1646555921188,0.00157878,39223.0,39222.0,4.71533877]
[1646555921387,0.00157878,39223.0,39222.0,4.82748211]
[1646555921588,0.00157878,39223.0,39222.0,2.74617187]
[1646555922389,0.00157878,39223.0,39222.0,3.24617187]
[1646555922591,0.00157878,39223.0,39222.0,3.02319497]
[1646555923093,0.00157878,39223.0,39222.0,4.72558921]
[1646555923389,0.00157878,39223.0,39222.0,2.93643163]
[1646555923592,0.00157878,39223.0,39222.0,3.04857354]
[1646555923790,0.00157878,39223.0,39222.0,2.9855192]
[1646555923990,0.00157878,39223.0,39222.0,2.9982492]
[1646555924238,0.00022183,39224.0,39223.0,1.07538]
[1646555924437,0.00022183,39224.0,39223.0,3.43077433]
[1646555924638,0.00500027,39226.0,39223.0,3.50539433]
[1646555924840,0.00500027,39226.0,39225.0,1.4525102]
[1646555925040,0.00500027,39226.0,39225.0,1.5034102]
[1646555925241,0.00500027,39226.0,39225.0,1.84849284]
[1646555925439,0.00500027,39226.0,39225.0,2.55257637]
[1646555926241,0.00500027,39226.0,39225.0,2.54610273]
[1646555928690,0.00500027,39226.0,39225.0,1.77050273]
[1646555928992,0.00500027,39226.0,39225.0,1.5664192]
[1646555929191,0.00500027,39226.0,39225.0,2.3420192]
[1646555929792,0.00500027,39226.0,39225.0,1.5664192]
[1646555930693,0.00500027,39226.0,39225.0,2.3420192]
[1646555932343,0.00668612,39226.0,39225.0,2.34769634]
[1646555932741,0.00668612,39226.0,39225.0,2.3407933]
[1646555933143,0.00668612,39226.0,39225.0,2.31305978]
[1646555933346,0.00668612,39226.0,39225.0,2.34079154]
[1646555933547,0.00668612,39226.0,39225.0,2.34922831]
[1646555936288,0.00668612,39226.0,39225.0,1.57362831]
[1646555936495,0.072892,39226.0,39225.0,0.70075978]
[1646555936689,0.072892,39226.0,39225.0,0.50567714]
[1646555937289,0.25559261,39226.0,39225.0,0.50567714]
[1646555937489,0.05033783,39224.0,39220.0,0.04365152]
[1646555937689,0.05033783,39224.0,39221.0,0.5]
[1646555937889,0.06620588,39223.0,39220.0,0.04365152]
[1646555938091,0.05033783,39224.0,39220.0,0.04365152]
[1646555938293,0.05033783,39224.0,39220.0,0.03765152]
[1646555938696,0.06620588,39223.0,39220.0,0.03765152]
[1646555939541,0.06620588,39223.0,39221.0,0.0509]
[1646555940549,0.06620588,39223.0,39221.0,0.8265]
[1646555940849,0.06620588,39223.0,39221.0,0.0509]
[1646555942044,0.06620588,39223.0,39221.0,0.8265]
[1646555942344,0.00136817,39223.0,39222.0,0.00170102]
[1646555942543,0.00136817,39223.0,39222.0,0.05260102]
[1646555943194,0.00136817,39223.0,39222.0,0.82845594]
[1646555944196,0.00136817,39223.0,39222.0,1.02354044]
[1646555944396,0.00136817,39223.0,39222.0,0.82845594]
[1646555944595,0.00136817,39223.0,39222.0,1.02354044]
[1646555944794,0.00136817,39223.0,39222.0,0.82845594]
[1646555944996,0.00136817,39223.0,39222.0,1.02354044]
[1646555945195,0.00136817,39223.0,39222.0,0.82845594]
[1646555945396,0.00136817,39223.0,39222.0,1.02354044]
[1646555945597,0.00136817,39223.0,39222.0,0.82845594]
[1646555945796,0.00136817,39223.0,39222.0,1.17354044]
[1646555945997,0.00136817,39223.0,39222.0,1.04218194]
[1646555946196,0.00136817,39223.0,39222.0,1.74016194]
[1646555946401,0.00136817,39223.0,39222.0,1.96128644]
[1646555947039,0.00136817,39223.0,39222.0,1.95932621]
[1646555948039,0.00136817,39223.0,39222.0,1.93328621]
[1646555948639,0.00136817,39223.0,39222.0,2.43328621]
[1646555950487,0.00136817,39223.0,39222.0,2.36956021]
[1646555950687,0.00136817,39223.0,39222.0,1.48374044]
[1646555951285,0.00136817,39223.0,39222.0,1.38348552]
[1646555951488,0.00136817,39223.0,39222.0,0.93176428]
[1646555951692,0.00136817,39223.0,39222.0,0.88348552]
[1646555951888,0.00136817,39223.0,39222.0,0.68840102]
[1646555953590,0.00136817,39223.0,39222.0,0.83840102]
[1646555954638,0.00136817,39223.0,39222.0,1.03348552]
[1646555955045,0.00136817,39223.0,39222.0,0.83840102]
[1646555955237,0.00136817,39223.0,39222.0,1.03348552]
[1646555955440,0.00136817,39223.0,39222.0,0.83840102]
[1646555955639,0.00136817,39223.0,39222.0,1.03348552]
[1646555955839,0.00136817,39223.0,39222.0,0.83840102]
[1646555956041,0.00136817,39223.0,39222.0,1.03348552]
[1646555956239,0.00136817,39223.0,39222.0,0.83840102]
[1646555956441,0.00136817,39223.0,39222.0,1.03348552]
[1646555956642,0.00136817,39223.0,39222.0,0.83840102]
[1646555956843,0.00136817,39223.0,39222.0,1.03348552]
[1646555957041,0.00136817,39223.0,39222.0,0.83840102]
[1646555957240,0.00136817,39223.0,39222.0,1.03348552]
[1646555957442,0.00136817,39223.0,39222.0,0.83840102]
[1646555957640,0.00136817,39223.0,39222.0,1.03348552]
[1646555957842,0.00136817,39223.0,39222.0,0.83840102]
[1646555958093,0.00136817,39223.0,39222.0,1.03348552]
[1646555958293,0.00136817,39223.0,39222.0,0.83840102]
[1646555958498,0.00136817,39223.0,39222.0,1.03348552]
[1646555958693,0.00136817,39223.0,39222.0,0.83840102]
[1646555958892,0.08087305,39224.0,39223.0,0.45]
[1646555959094,0.08063721,39224.0,39223.0,0.0509]
[1646555959293,0.0808665,39224.0,39223.0,0.2459845]
[1646555959497,0.0808665,39224.0,39223.0,0.0509]
[1646555960196,0.08063721,39224.0,39223.0,0.0509]
[1646555966592,0.41390791,39224.0,39222.0,0.00170102]
[1646555966795,0.4832707,39223.0,39222.0,0.00170102]
[1646555966990,0.4832707,39223.0,39222.0,1.02e-06]
[1646555967590,0.00800203,39217.0,39210.0,0.0381288]
[1646555967790,0.00800203,39217.0,39211.0,0.5]
[1646555967989,0.00800203,39217.0,39210.0,0.0381288]
[1646555967990,0.06620588,39212.0,39210.0,0.0381288]
[1646555968490,0.212957,39211.0,39210.0,0.0381288]
[1646555968690,0.06620588,39212.0,39210.0,0.0381288]
[1646555969741,0.26163681,39212.0,39210.0,0.0381288]
[1646555971837,0.26163681,39212.0,39207.0,0.24429973]
[1646555972039,0.06620588,39208.0,39207.0,0.24429973]
[1646555972241,0.06620588,39208.0,39207.0,0.35350656]
[1646555972739,0.06620588,39208.0,39207.0,0.19927917]
[1646555974194,0.06620588,39208.0,39207.0,0.39977094]
[1646555974996,0.001306,39211.0,39207.0,1.15036457]
[1646555975198,0.001306,39211.0,39208.0,0.1]
[1646555975395,0.001306,39211.0,39209.0,0.0509]
[1646555976942,0.06620588,39212.0,39209.0,0.0509]
[1646555977143,0.3586507,39221.0,39209.0,0.0509]
[1646555977346,0.16281626,39218.0,39209.0,0.0509]
[1646555977542,0.18819626,39218.0,39209.0,0.0509]
[1646555977742,0.06620588,39214.0,39213.0,0.16919427]
[1646555978142,0.06620588,39214.0,39213.0,0.22009427]
[1646555980791,0.00800203,39217.0,39213.0,1.68149427]
[1646555980993,0.00800203,39217.0,39216.0,0.00058641]
[1646555981192,0.00800203,39217.0,39216.0,0.68728641]
[1646555981591,0.00800203,39217.0,39216.0,0.83728641]
[1646555982190,0.00800203,39217.0,39216.0,1.03237091]
[1646555982391,0.00800203,39217.0,39216.0,1.09610946]
[1646555982594,0.00800203,39217.0,39216.0,1.87170946]
[1646555982791,0.00800203,39217.0,39216.0,1.93544846]
[1646555987142,0.011554,39217.0,39216.0,1.93544846]
[1646555987543,0.011554,39217.0,39216.0,1.87170991]
[1646555987746,0.01149198,39217.0,39216.0,1.87170991]
[1646555996089,0.00022185,39219.0,39218.0,0.7756]
[1646555996293,0.00500027,39226.0,39218.0,1.92106075]
[1646555996492,0.00500027,39226.0,39223.0,1.4114]
[1646555996691,0.00500027,39226.0,39223.0,1.763566]
[1646555996890,0.00500027,39226.0,39223.0,2.1086505]
[1646555997091,0.00500027,39226.0,39223.0,2.29083276]
[1646555997290,0.00500027,39226.0,39223.0,2.23749892]
[1646555997690,0.00022183,39225.0,39223.0,2.23749892]
[1646555998093,0.00022183,39225.0,39223.0,2.15083276]
[1646555998293,0.00022183,39225.0,39223.0,2.23748677]
[1646555998693,0.00500027,39226.0,39223.0,2.23748677]
[1646555998992,0.00022183,39225.0,39223.0,2.23748677]
[1646555999237,0.00022183,39225.0,39223.0,2.27835929]
[1646555999444,0.00022183,39225.0,39223.0,2.29090316]
[1646555999838,0.00500027,39226.0,39223.0,2.25297929]
[1646556000040,0.00500027,39226.0,39223.0,3.06261682]
[1646556000340,0.00022183,39225.0,39223.0,3.06261682]
[1646556000642,0.00022183,39225.0,39223.0,2.9351664]
[1646556001039,0.00500027,39226.0,39223.0,2.7121895]
[1646556001439,0.00022183,39225.0,39223.0,2.7121895]
[1646556002337,0.00500027,39226.0,39223.0,2.7121895]
[1646556002538,0.00022183,39225.0,39223.0,2.7121895]
[1646556002738,0.01670057,39224.0,39223.0,2.7121895]
[1646556005492,1.7876653,39240.0,39224.0,1.05]
[1646556005692,1.7876653,39240.0,39225.0,1.2088707]
[1646556005897,1.7622853,39240.0,39231.0,0.6358]
[1646556006093,1.7622853,39240.0,39232.0,0.0509]
[1646556006293,1.7622853,39240.0,39232.0,0.1509]
[1646556006741,1.7622853,39240.0,39233.0,0.6358]
[1646556007038,1.7622853,39240.0,39234.0,0.0509]
[1646556007439,1.7622853,39240.0,39233.0,0.534]
[1646556007641,1.7622853,39240.0,39234.0,0.0509]
[1646556008444,0.21113362,39237.0,39234.0,0.0509]
[1646556008839,1.7622853,39240.0,39234.0,0.0509]
[1646556009641,0.00023686,39239.0,39234.0,0.0509]
[1646556010689,1.7622853,39240.0,39234.0,0.0509]
[1646556010891,0.00023687,39238.0,39234.0,0.0509]
[1646556011692,0.19890027,39236.0,39234.0,0.0509]
[1646556011891,0.19890027,39236.0,39235.0,0.08666063]
[1646556012290,0.19890027,39236.0,39235.0,0.13756063]
[1646556012997,0.19890027,39236.0,39230.0,0.005]
[1646556012998,0.67766013,39236.0,39230.0,0.005]
[1646556013195,0.15,39232.0,39230.0,0.005]
[1646556013391,0.32875986,39231.0,39230.0,0.005]
[1646556014239,0.32875986,39231.0,39223.0,1.06457683]
[1646556014441,0.32875986,39231.0,39223.0,0.56457683]
[1646556014639,0.32875986,39231.0,39229.0,0.004]
[1646556015244,0.15,39230.0,39229.0,0.004]
[1646556015441,0.47875986,39230.0,39229.0,0.004]
[1646556016743,0.47875986,39230.0,39226.0,0.003]
[1646556018093,0.47875986,39230.0,39223.0,0.56457683]
[1646556018297,0.47897362,39230.0,39223.0,0.56457683]
[1646556019096,0.47875986,39230.0,39223.0,0.56457683]
[1646556019298,0.00021376,39228.0,39223.0,0.56457683]
[1646556020297,0.33003804,39231.0,39223.0,0.56457683]
[1646556020597,0.00021377,39227.0,39223.0,0.56457683]
[1646556021599,0.00127818,39231.0,39223.0,0.56457683]
[1646556021846,0.00022211,39227.0,39223.0,0.56457683]
[1646556022047,0.00022211,39227.0,39224.0,0.1]
[1646556022249,0.00022211,39227.0,39225.0,0.01273]
[1646556022446,0.00022211,39227.0,39225.0,0.83923]
[1646556022650,0.00022211,39227.0,39226.0,1.42414697]